bitfinex-derivatives/quotes_BTCF0:USTF0_20250222
["timestamp","ask_amount","ask_price","bid_price","bid_amount"]
[1740184338922,0.1014,95867.0,95866.0,0.68940715]
[1740184340122,0.1014,95867.0,95866.0,0.3137038]
[1740184340422,0.1014,95867.0,95866.0,0.105]
[1740184340719,0.1014,95867.0,95866.0,0.3137038]
[1740184341322,0.1014,95867.0,95866.0,0.2087038]
[1740184341525,0.1014,95867.0,95866.0,0.3137038]
[1740184342624,0.2087038,95866.0,95865.0,0.17075649]
[1740184342824,0.2087146,95861.0,95860.0,0.3608]
[1740184343024,0.0621764,95865.0,95860.0,0.3608]
[1740184343223,0.0521777,95863.0,95860.0,0.3608]
[1740184343423,0.01,95862.0,95858.0,0.17076313]
[1740184343618,0.208719,95859.0,95858.0,0.17076313]
[1740184344328,0.22054935,95859.0,95858.0,0.17076313]
[1740184344716,0.01183035,95859.0,95858.0,0.17076313]
[1740184345023,0.001,95861.0,95853.0,0.00156466]
[1740184345024,0.0521792,95860.0,95853.0,0.31373]
[1740184345327,0.2087247,95857.0,95853.0,0.31373]
[1740184345528,0.097,95856.0,95853.0,0.31373]
[1740184345731,0.097,95856.0,95855.0,0.2087277]
[1740184346321,0.097,95856.0,95853.0,0.1571825]
[1740184346728,0.097,95856.0,95855.0,0.2087277]
[1740184346924,0.097,95856.0,95853.0,0.105]
[1740184347125,0.097,95856.0,95854.0,0.2087299]
[1740184347325,0.098,95856.0,95853.0,0.105]
[1740184347520,0.098,95856.0,95854.0,0.0521824]
[1740184347728,0.098,95856.0,95855.0,0.2087277]
[1740184348831,0.3067255,95856.0,95853.0,0.105]
[1740184349130,0.098,95856.0,95854.0,0.0521824]
[1740184349328,0.0942,95855.0,95854.0,0.2087299]
[1740184350320,0.3029285,95855.0,95854.0,0.2087299]
[1740184350529,0.3039285,95855.0,95854.0,0.2087299]
[1740184350834,0.0952,95855.0,95854.0,0.2087299]
[1740184351036,0.0952,95855.0,95840.0,0.0006]
[1740184351037,0.766,95855.0,95840.0,0.0006]
[1740184351331,0.05219,95841.0,95829.0,0.0521959]
[1740184351634,0.289,95840.0,95839.0,0.2087625]
[1740184351821,0.4977619,95840.0,95836.0,0.2087691]
[1740184352021,0.289,95840.0,95831.0,0.0521947]
[1740184352231,0.208769,95837.0,95836.0,0.208766]
[1740184352432,0.01,95839.0,95828.0,0.105]
[1740184352625,0.0521956,95833.0,95830.0,0.0521952]
[1740184352826,0.01,95839.0,95828.0,0.105]
[1740184352827,0.3131623,95836.0,95835.0,0.2087654]
[1740184353136,0.2609742,95837.0,95836.0,0.2087681]
[1740184353322,0.01,95839.0,95820.0,0.4130009]
[1740184353526,0.204793,95827.0,95826.0,0.2609819]
[1740184354023,0.308093,95827.0,95826.0,0.2609819]
[1740184354226,0.303093,95827.0,95826.0,0.2609819]
[1740184354634,0.1033,95827.0,95826.0,0.2609819]
[1740184354942,0.1043,95827.0,95826.0,0.2679819]
[1740184355129,0.1053,95827.0,95826.0,0.2679819]
[1740184357731,0.002,95827.0,95826.0,0.2679819]
[1740184362443,0.01141879,95837.0,95826.0,0.0591971]
[1740184362744,0.0963,95853.0,95847.0,0.2087451]
[1740184363134,0.01190791,95848.0,95847.0,0.2087451]
[1740184363343,0.01190791,95848.0,95847.0,0.3028451]
[1740184363535,0.00015646,95848.0,95847.0,0.3028451]
[1740184364045,0.00015646,95848.0,95847.0,0.4078851]
[1740184365037,0.20175053,95861.0,95847.0,0.55994]
[1740184365243,1e-08,95858.0,95857.0,0.2087233]
[1740184365448,0.15545405,95873.0,95872.0,0.2086907]
[1740184366032,0.15545405,95873.0,95872.0,0.4128907]
[1740184366237,0.18627428,95879.0,95878.0,0.2086776]
[1740184366238,8e-08,95879.0,95878.0,0.2086776]
[1740184366847,0.21829398,95891.0,95890.0,0.2086515]
[1740184367148,0.21829398,95891.0,95890.0,0.3136915]
[1740184367350,0.21829398,95891.0,95890.0,0.32999686]
[1740184367544,0.00156496,95893.0,95892.0,0.2086472]
[1740184367844,0.00156496,95893.0,95892.0,0.22495256]
[1740184368042,0.00156496,95893.0,95892.0,0.22495235]
[1740184369834,0.00856496,95893.0,95892.0,0.22495235]
[1740184370647,0.01556496,95893.0,95892.0,0.22495235]
[1740184370948,0.014,95893.0,95892.0,0.22495235]
[1740184374442,0.014,95893.0,95892.0,0.2086472]
[1740184376543,0.014,95893.0,95892.0,0.22495234]
[1740184377547,0.014,95893.0,95892.0,0.2086472]
[1740184378144,0.014,95893.0,95892.0,0.22495237]
[1740184378349,0.014,95893.0,95892.0,0.2086472]
[1740184380442,0.014,95893.0,95891.0,0.04166791]
[1740184381047,0.014,95893.0,95892.0,0.2086472]
[1740184381643,0.007,95893.0,95892.0,0.2086472]
[1740184381850,0.014,95893.0,95892.0,0.2086472]
[1740184382044,0.014,95893.0,95891.0,0.04166791]
[1740184382246,0.014,95893.0,95892.0,0.2086472]
[1740184383250,0.2086384,95897.0,95891.0,0.04166791]
[1740184383547,0.014,95893.0,95892.0,0.27711417]
[1740184384350,0.007,95893.0,95892.0,0.27711417]
[1740184385155,0.014,95893.0,95892.0,0.27711417]
[1740184385347,0.007,95893.0,95892.0,0.27711417]
[1740184386269,0.014,95893.0,95892.0,0.27711417]
[1740184387455,0.014,95893.0,95892.0,0.30320245]
[1740184388750,0.3608,95900.0,95899.0,0.2086319]
[1740184388955,0.3608,95900.0,95899.0,0.25102535]
[1740184389257,0.00015646,95902.0,95901.0,0.2086276]
[1740184389449,6e-08,95902.0,95901.0,0.25102105]
[1740184389851,0.3608,95921.0,95920.0,0.2085863]
[1740184390051,0.3608,95921.0,95920.0,0.25097975]
[1740184390560,0.3608,95921.0,95920.0,0.54587339]
[1740184391355,0.3678,95921.0,95920.0,0.54687339]
[1740184392454,0.3718,95921.0,95920.0,0.54787339]
[1740184392957,0.011,95921.0,95920.0,0.54787339]
[1740184393156,0.00015638,95930.0,95929.0,0.2085667]
[1740184393358,1e-08,95930.0,95929.0,0.35591379]
[1740184394358,0.00500001,95930.0,95929.0,0.35691379]
[1740184394661,0.00500001,95930.0,95929.0,0.33083187]
[1740184395356,0.01000001,95930.0,95929.0,0.33183187]
[1740184396556,0.01000001,95930.0,95929.0,0.35790874]
[1740184396954,0.01000001,95930.0,95929.0,0.3155267]
[1740184398362,0.01000001,95930.0,95929.0,0.33182411]
[1740184400860,0.01000001,95930.0,95929.0,0.35790054]
[1740184408879,0.00600001,95930.0,95929.0,0.35690054]
[1740184409176,0.00600001,95930.0,95929.0,0.35690059]
[1740184409578,0.01132119,95938.0,95937.0,0.2085493]
[1740184409773,0.2056,95949.0,95948.0,0.2085254]
[1740184409972,0.2056,95949.0,95948.0,0.25089929]
[1740184410370,0.42547711,95949.0,95948.0,0.25089929]
[1740184410773,0.21695391,95949.0,95948.0,0.25089929]
[1740184411073,0.21695391,95949.0,95948.0,0.22482305]
[1740184411274,0.21695391,95949.0,95948.0,0.22482298]
[1740184411480,0.22095391,95949.0,95948.0,0.22582298]
[1740184411979,0.22595391,95949.0,95948.0,0.2528991]
[1740184412575,0.43447711,95949.0,95948.0,0.2528991]
[1740184412877,0.43447711,95949.0,95948.0,0.01139439]
[1740184413073,0.43447711,95949.0,95948.0,0.21991979]
[1740184413778,0.22595391,95949.0,95948.0,0.21991979]
[1740184413979,0.43447711,95949.0,95948.0,0.24599587]
[1740184415278,0.43447711,95949.0,95948.0,0.23660148]
[1740184415782,0.79527711,95949.0,95948.0,0.23660148]
[1740184416780,0.79527711,95949.0,95948.0,0.02807608]
[1740184416984,0.79527711,95949.0,95948.0,0.2105254]
[1740184417184,0.79527711,95949.0,95948.0,0.23660148]
[1740184417379,0.79527711,95949.0,95948.0,0.2105254]
[1740184417578,0.79527711,95949.0,95948.0,0.23660148]
[1740184417986,1.03101446,95949.0,95948.0,0.23660148]
[1740184418177,1.03101446,95949.0,95948.0,0.2105254]
[1740184418788,1.03101446,95949.0,95948.0,0.23660148]
[1740184419182,1.03101446,95949.0,95948.0,0.2105254]
[1740184419381,1.03101446,95949.0,95948.0,0.02807608]
[1740184419581,1.03101446,95949.0,95948.0,0.23660148]
[1740184419782,1.03101446,95949.0,95948.0,0.2105254]
[1740184419987,0.82249126,95949.0,95948.0,0.2105254]
[1740184420989,0.76864481,95949.0,95948.0,0.2105254]
[1740184421678,0.97716801,95949.0,95948.0,0.2105254]
[1740184421981,0.97716801,95949.0,95948.0,0.23660151]
[1740184422381,0.76864481,95949.0,95948.0,0.23660151]
[1740184424688,0.74217371,95949.0,95948.0,0.23660151]
[1740184424891,0.74217371,95949.0,95948.0,0.22682298]
[1740184425388,0.38137371,95949.0,95948.0,0.22682298]
[1740184425585,0.38137371,95949.0,95948.0,0.58762298]
[1740184425586,0.17577371,95949.0,95948.0,0.58762298]
[1740184425779,0.1644198,95949.0,95948.0,0.85322298]
[1740184426978,0.1644198,95949.0,95948.0,0.8369254]
[1740184428583,0.009,95949.0,95948.0,0.8369254]
[1740184429894,0.009,95949.0,95948.0,0.85321968]
[1740184431182,0.009,95949.0,95948.0,0.49241968]
[1740184431381,0.009,95949.0,95948.0,0.85321968]
[1740184431590,0.0823,95963.0,95948.0,0.64469428]
[1740184431788,0.0823,95963.0,95957.0,0.2085058]
[1740184431987,0.0823,95963.0,95957.0,0.32968008]
[1740184432184,0.01153289,95958.0,95957.0,0.32968008]
[1740184433591,0.01153289,95958.0,95957.0,0.33068008]
[1740184433986,0.01153289,95958.0,95957.0,0.33168008]
[1740184434990,0.01153289,95958.0,95957.0,0.3153858]
[1740184435899,0.01153289,95958.0,95957.0,0.33168009]
[1740184440494,0.00015638,95958.0,95957.0,0.33168009]
[1740184444993,0.00015638,95958.0,95957.0,0.33167988]
[1740184446993,0.00015638,95958.0,95957.0,0.33167987]
[1740184449608,0.00015638,95958.0,95957.0,0.42057987]
[1740184449801,1e-08,95958.0,95957.0,0.42057987]
[1740184450007,1e-08,95958.0,95957.0,0.44665051]
[1740184451297,1e-08,95958.0,95957.0,0.44717051]
[1740184452113,1e-08,95958.0,95957.0,0.44725051]
[1740184452602,1e-08,95958.0,95957.0,0.44721051]
[1740184452807,1e-08,95958.0,95957.0,0.44721024]
[1740184454409,1e-08,95958.0,95957.0,0.44621024]
[1740184454900,1e-08,95958.0,95957.0,0.44621017]
[1740184456101,1e-08,95958.0,95957.0,0.42013979]
[1740184457415,1e-08,95958.0,95957.0,0.4038458]
[1740184457596,1e-08,95958.0,95957.0,0.42013973]
[1740184457997,1e-08,95958.0,95957.0,0.44621]
[1740184459008,0.12309683,95958.0,95957.0,0.44621]
[1740184459611,0.09963356,95958.0,95957.0,0.44621]
[1740184461009,0.09963356,95958.0,95957.0,0.42013973]
[1740184462611,0.09963356,95958.0,95957.0,0.22579973]
[1740184462804,0.09963356,95958.0,95957.0,0.33231973]
[1740184462999,0.0872,95961.0,95960.0,0.2084993]
[1740184463209,0.0872,95961.0,95960.0,0.25086371]
[1740184464310,0.0872,95961.0,95960.0,0.25186371]
[1740184464515,0.0872,95961.0,95960.0,0.25286371]
[1740184464706,0.0872,95961.0,95960.0,0.2104993]
[1740184464914,0.0872,95961.0,95960.0,0.25286396]
[1740184465110,0.0872,95961.0,95960.0,0.2267934]
[1740184465913,0.0872,95961.0,95960.0,0.22679344]
[1740184466214,0.0872,95961.0,95960.0,0.25286406]
[1740184467203,0.0872,95961.0,95960.0,0.22679344]
[1740184467411,0.00015638,95967.0,95960.0,0.01829414]
[1740184467604,0.00015638,95967.0,95966.0,0.2084863]
[1740184467808,0.00015638,95967.0,95966.0,0.22478044]
[1740184468214,0.00015638,95967.0,95966.0,0.25085089]
[1740184468710,0.00015638,95967.0,95966.0,0.26714502]
[1740184469512,0.2373543,95967.0,95966.0,0.26714502]
[1740184469707,0.2373543,95967.0,95966.0,0.26814502]
[1740184470103,0.2373543,95967.0,95966.0,0.24207457]
[1740184470318,0.2373543,95967.0,95966.0,0.24307457]
[1740184471609,0.2373543,95967.0,95966.0,0.22678044]
[1740184473220,0.05084222,95967.0,95966.0,0.22678044]
[1740184474620,0.05084222,95967.0,95966.0,0.22678033]
[1740184475210,0.05084222,95967.0,95966.0,0.25285084]
[1740184476220,0.05084222,95967.0,95966.0,0.22678033]
[1740184477317,0.00015638,95967.0,95966.0,0.22678033]
[1740184478926,0.00015638,95967.0,95966.0,0.58758033]
[1740184479118,0.00015638,95967.0,95966.0,0.5712863]
[1740184479317,0.00015638,95967.0,95966.0,0.7439863]
[1740184480224,0.00015638,95967.0,95966.0,0.76027978]
[1740184480812,0.00019994,95967.0,95966.0,0.76027978]
[1740184481218,0.00019994,95967.0,95966.0,0.7439863]
[1740184482720,0.00019994,95967.0,95966.0,0.5712863]
[1740184482927,0.29138404,95967.0,95966.0,0.3628]
[1740184483221,0.29138404,95967.0,95966.0,0.001]
[1740184483416,0.2084888,95965.0,95964.0,0.2084896]
[1740184483617,0.0521221,95965.0,95963.0,0.25016782]
[1740184483824,0.2084906,95964.0,95963.0,0.25016782]
[1740184484317,0.0852,95966.0,95958.0,0.10676]
[1740184484512,0.2606264,95960.0,95959.0,0.2085007]
[1740184484723,0.2075015,95959.0,95958.0,0.10676]
[1740184484919,0.2075015,95959.0,95958.0,0.2085037]
[1740184485122,0.2065015,95959.0,95958.0,0.2085037]
[1740184485816,0.2075015,95959.0,95958.0,0.2095037]
[1740184486332,0.001,95959.0,95958.0,0.2095037]
[1740184486524,0.2095015,95959.0,95958.0,0.2095037]
[1740184487027,0.001,95959.0,95958.0,0.2105037]
[1740184487333,0.2095015,95959.0,95958.0,0.2105037]
[1740184488227,0.001,95959.0,95958.0,0.2105037]
[1740184488528,0.26018558,95959.0,95958.0,0.2105037]
[1740184489319,0.05168408,95959.0,95958.0,0.2105037]
[1740184490827,0.001,95959.0,95958.0,0.2105037]
[1740184508062,0.05168588,95959.0,95958.0,0.2105037]
[1740184512362,0.05168588,95959.0,95958.0,0.22149086]
[1740184514961,0.001,95959.0,95958.0,0.22149086]
[1740184515461,0.00019994,95967.0,95966.0,0.2084863]
[1740184515663,0.00019994,95967.0,95966.0,0.69202026]
[1740184515855,0.00019994,95967.0,95966.0,0.95902026]
[1740184516564,0.15551963,95976.0,95975.0,0.2084667]
[1740184516867,0.15551963,95976.0,95975.0,0.58556066]
[1740184517069,0.15551963,95976.0,95975.0,0.67656066]
[1740184517366,3e-08,95976.0,95975.0,0.70262761]
[1740184517667,3e-08,95976.0,95975.0,0.71385968]
[1740184517864,0.00200003,95976.0,95975.0,0.70362761]
[1740184518066,0.00200003,95976.0,95975.0,0.70462761]
[1740184518370,0.18651208,95984.0,95983.0,0.2084493]
[1740184518667,0.0865,95998.0,95983.0,0.55724617]
[1740184518861,0.0865,95998.0,95997.0,0.2084189]
[1740184519066,0.09738786,95998.0,95997.0,0.25077981]
[1740184519269,0.0865,95998.0,95997.0,0.25077981]
[1740184519769,0.0865,95998.0,95997.0,0.26707052]
[1740184520365,0.09773979,95998.0,95997.0,0.2094189]
[1740184520567,0.09773979,95998.0,95997.0,0.2104189]
[1740184521059,0.09773979,95998.0,95997.0,0.2084189]
[1740184521259,0.09773979,95998.0,95997.0,0.2094189]
[1740184521665,0.09773979,95998.0,95997.0,0.2084189]
[1740184521861,0.30615659,95998.0,95997.0,0.2094189]
[1740184522061,0.30615659,95998.0,95997.0,0.001]
[1740184522459,0.2084363,95989.0,95988.0,0.0001563]
[1740184522658,0.0521103,95987.0,95977.0,0.00156281]
[1740184522869,0.2084602,95979.0,95978.0,0.2605702]
[1740184523559,0.2084602,95979.0,95978.0,0.2084553]
[1740184524161,0.2184602,95979.0,95978.0,0.2084553]
[1740184525574,0.2184602,95979.0,95978.0,0.2104553]
[1740184525765,0.3027602,95979.0,95978.0,0.2104553]
[1740184526168,0.3027602,95979.0,95978.0,0.2084553]
[1740184526671,0.3037602,95979.0,95978.0,0.2084553]
[1740184527572,0.3027602,95979.0,95978.0,0.2084553]
[1740184527769,0.3037602,95979.0,95978.0,0.2084553]
[1740184529870,0.3027602,95979.0,95978.0,0.2084553]
[1740184534773,0.2184602,95979.0,95978.0,0.2084553]
[1740184534977,0.2184602,95979.0,95978.0,0.2963553]
[1740184535877,0.2084602,95979.0,95978.0,0.2963553]
[1740184536178,0.2184602,95979.0,95978.0,0.2963553]
[1740184536578,0.2084602,95979.0,95978.0,0.2963553]
[1740184536777,0.2184602,95979.0,95978.0,0.2963553]
[1740184537177,0.2084602,95979.0,95978.0,0.2963553]
[1740184537578,0.2184602,95979.0,95978.0,0.2963553]
[1740184537772,0.01,95979.0,95978.0,0.2963553]
[1740184538075,0.218458,95979.0,95978.0,0.2963553]
[1740184538269,0.0913,95985.0,95978.0,0.0879]
[1740184538473,0.0913,95985.0,95984.0,0.2084472]
[1740184538874,0.0913,95985.0,95984.0,0.2957472]
[1740184539073,0.0001563,95988.0,95987.0,0.2084407]
[1740184539578,0.0101563,95988.0,95987.0,0.2984407]
[1740184539878,0.0001563,95988.0,95987.0,0.6592407]
[1740184540268,0.0001563,95988.0,95987.0,0.6602407]
[1740184544585,0.0001563,95988.0,95987.0,0.67653002]
[1740184548975,0.0001563,95988.0,95987.0,0.31573002]
[1740184550181,0.28651208,96000.0,95999.0,0.2084146]
[1740184550382,0.28651208,96000.0,95999.0,0.22470392]
[1740184550582,0.28651208,96000.0,95999.0,0.48720392]
[1740184550783,0.1,96000.0,95999.0,0.48720392]
[1740184551185,0.1,96000.0,95999.0,0.48720244]
[1740184551380,1e-07,96000.0,95999.0,0.4983362]
[1740184551883,1e-07,96000.0,95999.0,0.5003362]
[1740184552781,1e-07,96000.0,95999.0,0.48404836]
[1740184558891,1e-07,96000.0,95999.0,0.48304836]
[1740184559087,1e-07,96000.0,95999.0,0.48204836]
[1740184560394,3e-08,96013.0,95999.0,0.27363376]
[1740184560600,0.53869398,96041.0,96027.0,0.2083538]
[1740184560894,0.0916,96040.0,96039.0,0.2083278]
[1740184561195,0.21829398,96041.0,96040.0,0.2083256]
[1740184562288,0.2083165,96045.0,96044.0,0.208317]
[1740184562797,0.0916,96046.0,96041.0,0.1621604]
[1740184563098,0.0916,96046.0,96044.0,0.2083148]
[1740184563099,0.2604011,96045.0,96044.0,0.2083148]
[1740184564499,0.2604011,96045.0,96044.0,0.2093148]
[1740184564695,0.2604011,96045.0,96044.0,0.2103148]
[1740184566805,0.2604011,96045.0,96044.0,0.2093148]
[1740184567004,0.2604011,96045.0,96044.0,0.2103148]
[1740184567594,0.0916,96046.0,96044.0,0.002]
[1740184567806,0.0916,96046.0,96045.0,0.2083148]
[1740184568394,0.2999126,96046.0,96045.0,0.2083148]
[1740184568601,0.0916,96046.0,96045.0,0.2083148]
[1740184569701,0.2999126,96046.0,96045.0,0.2083148]
[1740184569902,0.0916,96046.0,96045.0,0.2083148]
[1740184570702,0.0916,96046.0,96045.0,0.2093148]
[1740184570908,0.0916,96046.0,96045.0,0.2103148]
[1740184571802,0.0916,96046.0,96045.0,0.22659416]
[1740184572201,0.0916,96046.0,96045.0,0.22659415]
[1740184572793,0.0916,96046.0,96045.0,0.24287351]
[1740184574208,0.0916,96046.0,96045.0,0.2428734]
[1740184574793,0.0916,96046.0,96045.0,0.22659404]
[1740184579011,0.0916,96046.0,96045.0,0.2103148]
[1740184590035,0.2999126,96046.0,96045.0,0.2103148]
[1740184590428,0.0916,96046.0,96042.0,0.31217526]
[1740184590736,0.2083191,96043.0,96042.0,0.31157526]
[1740184590925,0.2083343,96036.0,96035.0,0.37355109]
[1740184591836,0.2083343,96036.0,96035.0,0.58188759]
[1740184592035,0.2083343,96036.0,96035.0,0.37355109]
[1740184592828,0.21922073,96036.0,96035.0,0.37355109]
[1740184593228,0.22022073,96036.0,96035.0,0.37555109]
[1740184593427,0.22022073,96036.0,96035.0,0.58388759]
[1740184593644,0.22022073,96036.0,96035.0,0.37555109]
[1740184594237,0.34532073,96036.0,96035.0,0.37555109]
[1740184594629,0.34532073,96036.0,96035.0,0.002]
[1740184599536,0.29372073,96036.0,96035.0,0.002]
[1740184600931,0.22022073,96036.0,96035.0,0.002]
[1740184602236,0.22022073,96036.0,96035.0,0.2103365]
[1740184603433,0.22022073,96036.0,96035.0,0.002]
[1740184603632,0.22022073,96036.0,96035.0,0.2103365]
[1740184604137,0.01188643,96036.0,96035.0,0.2103365]
[1740184604442,0.001,96036.0,96035.0,0.2103365]
[1740184605135,0.2093343,96036.0,96035.0,0.002]
[1740184606043,0.2093343,96036.0,96035.0,0.2103365]
[1740184606241,0.2093343,96036.0,96035.0,0.002]
[1740184607354,0.2193343,96036.0,96035.0,0.002]
[1740184609136,0.2083473,96030.0,96029.0,0.0842]
[1740184609438,0.2183473,96030.0,96029.0,0.0842]
[1740184610340,0.2193473,96030.0,96029.0,0.0852]
[1740184611544,0.2193473,96030.0,96029.0,0.0862]
[1740184612747,0.3063473,96030.0,96029.0,0.0862]
[1740184613148,0.3193473,96030.0,96029.0,0.0862]
[1740184614154,0.3063473,96030.0,96029.0,0.0862]
[1740184614750,0.2263473,96030.0,96029.0,0.0862]
[1740184615351,0.2193473,96030.0,96029.0,0.2945495]
[1740184615551,0.2193473,96030.0,96029.0,0.0862]
[1740184615952,0.2193473,96030.0,96029.0,0.2945495]
[1740184616457,0.2093473,96030.0,96029.0,0.2945495]
[1740184616757,0.2093473,96030.0,96029.0,0.0862]
[1740184617057,0.2093473,96030.0,96029.0,0.2945495]
[1740184617252,0.001,96030.0,96029.0,0.2945495]
[1740184617554,0.2093473,96030.0,96029.0,0.2945495]
[1740184617755,0.001,96030.0,96029.0,0.2945495]
[1740184619955,0.2093473,96030.0,96029.0,0.2945495]
[1740184620259,0.001,96030.0,96029.0,0.2945495]
[1740184620663,0.2093473,96030.0,96029.0,0.2945495]
[1740184621254,0.001,96030.0,96029.0,0.2945495]
[1740184621555,0.2093473,96030.0,96029.0,0.2945495]
[1740184622260,0.001,96030.0,96029.0,0.2945495]
[1740184622461,0.2093473,96030.0,96029.0,0.2945495]
[1740184625263,0.2193473,96030.0,96029.0,0.2945495]
[1740184625564,0.26999796,96030.0,96029.0,0.2945495]
[1740184630067,0.26999796,96030.0,96029.0,0.0862]
[1740184630369,0.36999796,96030.0,96029.0,0.002]
[1740184631263,0.48271796,96030.0,96029.0,0.002]
[1740184633372,0.4320673,96030.0,96029.0,0.002]
[1740184633764,0.4220673,96030.0,96029.0,0.002]
[1740184633969,0.4320673,96030.0,96029.0,0.002]
[1740184634284,0.4220673,96030.0,96029.0,0.002]
[1740184635582,0.4320673,96030.0,96029.0,0.002]
[1740184637482,0.8024673,96030.0,96029.0,0.002]
[1740184637792,0.5024673,96030.0,96029.0,0.002]
[1740184638086,0.7924673,96030.0,96029.0,1e-07]
[1740184638281,0.4924673,96030.0,96029.0,1e-07]
[1740184638485,0.7924673,96030.0,96029.0,1e-07]
[1740184639278,0.4220673,96030.0,96029.0,1e-07]
[1740184639777,0.3093473,96030.0,96029.0,1e-07]
[1740184639976,0.3638673,96030.0,96029.0,1e-07]
[1740184640182,0.4238273,96030.0,96029.0,1e-07]
[1740184640487,0.4338273,96030.0,96029.0,1e-07]
[1740184641291,0.4037073,96030.0,96029.0,1e-07]
[1740184641682,0.2893473,96030.0,96029.0,1e-07]
[1740184641886,0.3956273,96030.0,96029.0,1e-07]
[1740184642279,0.3093473,96030.0,96029.0,1e-07]
[1740184643287,0.2793473,96030.0,96029.0,1e-07]
[1740184643794,0.2193473,96030.0,96029.0,1e-07]
[1740184644180,0.3093473,96030.0,96029.0,1e-07]
[1740184647290,0.3818473,96030.0,96029.0,1e-07]
[1740184647783,0.2083417,96023.0,96022.0,0.09305186]
[1740184647986,0.7835017,96023.0,96022.0,0.09305186]
[1740184648189,0.9404017,96023.0,96022.0,0.09305186]
[1740184648991,0.2083504,96019.0,96018.0,0.00015621]
[1740184649186,0.2983504,96019.0,96018.0,0.00015621]
[1740184649591,0.3083504,96019.0,96018.0,0.00015621]
[1740184649788,0.3043504,96019.0,96018.0,0.00015621]
[1740184649990,0.4176704,96019.0,96018.0,0.00015621]
[1740184650291,0.4216704,96019.0,96018.0,0.00015621]
[1740184650485,0.4236704,96019.0,96018.0,0.00115621]
[1740184651093,0.4196704,96019.0,96018.0,0.00115621]
[1740184651497,0.4176704,96019.0,96018.0,0.00015621]
[1740184651686,0.4196704,96019.0,96018.0,0.00115621]
[1740184652093,0.4236704,96019.0,96018.0,0.00115621]
[1740184652797,0.4236704,96019.0,96018.0,0.00215621]
[1740184652992,0.4216704,96019.0,96018.0,0.00115621]
[1740184653186,0.41088525,96019.0,96018.0,0.00215621]
[1740184653493,0.47088525,96019.0,96018.0,0.00115621]
[1740184653694,0.47188525,96019.0,96018.0,0.00115621]
[1740184654195,0.47588525,96019.0,96018.0,0.00115621]
[1740184655087,0.47188525,96019.0,96018.0,0.00215621]
[1740184655888,0.46188525,96019.0,96018.0,0.00115621]
[1740184656086,0.4252304,96019.0,96018.0,0.00115621]
[1740184656591,0.4242304,96019.0,96018.0,0.00115621]
[1740184657591,0.4242304,96019.0,96018.0,0.00015621]
[1740184657801,0.4242304,96019.0,96018.0,0.00115621]
[1740184658692,0.4242304,96019.0,96018.0,0.00215621]
[1740184659285,0.4242304,96019.0,96018.0,0.00115621]
[1740184659486,0.4242304,96019.0,96018.0,0.00215621]
[1740184661297,0.4042304,96019.0,96018.0,0.00215621]
[1740184661699,0.4042304,96019.0,96018.0,0.00115621]
[1740184662091,0.4242304,96019.0,96018.0,0.00115621]
[1740184662491,0.4242304,96019.0,96018.0,0.00215621]
[1740184663088,0.4042304,96019.0,96018.0,0.00215621]
[1740184664100,0.3103504,96019.0,96018.0,0.00215621]
[1740184664299,0.4230704,96019.0,96018.0,0.00215621]
[1740184664499,0.4030704,96019.0,96018.0,0.00215621]
[1740184664801,0.4030704,96019.0,96018.0,0.00115621]
[1740184665002,0.4230704,96019.0,96018.0,0.00215621]
[1740184666102,0.7838704,96019.0,96018.0,0.00215621]
[1740184666301,0.7938704,96019.0,96018.0,0.00215621]
[1740184666996,0.7908704,96019.0,96018.0,0.00115621]
[1740184667393,0.7938704,96019.0,96018.0,0.00215621]
[1740184668197,0.7938704,96019.0,96018.0,0.00115621]
[1740184669105,0.7938704,96019.0,96018.0,0.00215621]
[1740184670200,0.7938704,96019.0,96018.0,0.00115621]
[1740184670404,0.7938704,96019.0,96018.0,0.00215621]
[1740184670803,0.7938704,96019.0,96018.0,0.00115621]
[1740184671009,0.7938704,96019.0,96018.0,0.00215621]
[1740184671208,0.84453382,96019.0,96018.0,0.00215621]
[1740184671509,0.84453382,96019.0,96018.0,0.00115621]
[1740184673000,0.73181382,96019.0,96018.0,0.00115621]
[1740184673201,0.84385382,96019.0,96018.0,0.00115621]
[1740184673406,0.82285382,96019.0,96018.0,0.00115621]
[1740184673608,0.80285382,96019.0,96018.0,0.00115621]
[1740184673802,0.79285382,96019.0,96018.0,0.00115621]
[1740184674704,0.47346342,96019.0,96018.0,0.20950881]
[1740184674906,0.63281382,96019.0,96018.0,0.00115621]
[1740184675105,0.63281382,96019.0,96018.0,0.29630881]
[1740184675511,0.62281382,96019.0,96018.0,0.29630881]
[1740184676309,0.61981382,96019.0,96018.0,0.29630881]
[1740184676512,0.62281382,96019.0,96018.0,0.29630881]
[1740184677414,0.62281382,96019.0,96018.0,0.29530881]
[1740184677712,0.62281382,96019.0,96018.0,0.29630881]
[1740184678409,0.18620846,96024.0,96018.0,0.08795621]
[1740184678607,0.05160846,96024.0,96023.0,0.5691417]
[1740184678809,0.6211944,96038.0,96037.0,0.2083113]
[1740184679112,0.5691092,96038.0,96037.0,0.2083113]
[1740184679308,0.3608,96038.0,96037.0,0.2083113]
[1740184679615,0.21933075,96042.0,96041.0,0.2083027]
[1740184679808,0.2083005,96042.0,96041.0,0.2083027]
[1740184681015,0.2093005,96042.0,96041.0,0.2093027]
[1740184681308,0.22027928,96042.0,96041.0,0.2093027]
[1740184681905,0.22027928,96042.0,96041.0,0.4661027]
[1740184684317,0.001,96042.0,96041.0,0.4661027]
[1740184686509,0.2093005,96042.0,96041.0,0.4661027]
[1740184686717,0.2093005,96042.0,96041.0,0.2578]
[1740184688106,0.2093005,96042.0,96041.0,0.4661027]
[1740184689607,0.2093005,96042.0,96041.0,0.2578]
[1740184689807,0.2093005,96042.0,96041.0,0.002]
[1740184689808,0.3093005,96042.0,96041.0,0.002]
[1740184690008,0.4809005,96042.0,96041.0,0.002]
[1740184691323,0.4909005,96042.0,96041.0,0.002]
[1740184691918,0.4109005,96042.0,96041.0,0.002]
[1740184692821,0.4909005,96042.0,96041.0,0.002]
[1740184693915,0.4109005,96042.0,96041.0,0.002]
[1740184695022,0.4709005,96042.0,96041.0,0.002]
[1740184695323,0.3829005,96042.0,96041.0,0.002]
[1740184697021,0.3129005,96042.0,96041.0,0.002]
[1740184697228,0.3229005,96042.0,96041.0,0.002]
[1740184697431,0.3129005,96042.0,96041.0,0.002]
[1740184697628,0.3229005,96042.0,96041.0,0.002]
[1740184697926,0.3629005,96042.0,96041.0,0.002]
[1740184698929,0.3229005,96042.0,96041.0,0.002]
[1740184699227,0.3229005,96042.0,96041.0,0.2103027]
[1740184699228,0.001,96042.0,96041.0,0.2103027]